fUST/lending_fUST_20250514
["ID","MTS","AMOUNT","RATE_DAILY","PERIOD"]
[361013024,1747204250086,-474.64,0.00013972,2]
[361013026,1747204250095,-400.0,0.00013972,2]
[361013028,1747204250105,-400.0,0.00013972,2]
[361013030,1747204250115,-400.0,0.00013972,2]
[361013032,1747204250124,-400.0,0.00013972,2]
[361013034,1747204250133,-2391.3,0.00013972,2]
[361013036,1747204250143,-400.0,0.00013972,2]
[361013038,1747204250152,-1056.3,0.00013972,2]
[361013040,1747204250162,-436.01,0.00013972,2]
[361013042,1747204250171,-400.0,0.00013972,2]
[361013044,1747204250181,-560.93,0.00013972,2]
[361013045,1747204250190,-400.0,0.00013972,2]
[361013048,1747204250199,-400.0,0.00013972,2]
[361013049,1747204250208,-400.0,0.00013972,2]
[361013051,1747204250218,-400.0,0.00013972,2]
[361013053,1747204250227,-400.0,0.00013972,2]
[361013056,1747204250236,-400.0,0.00013972,2]
[361013057,1747204250245,-400.0,0.00013972,2]
[361013059,1747204250255,-3821.41,0.00013972,2]
[361013061,1747204250264,-400.0,0.00013972,2]
[361013063,1747204250273,-336.48,0.00014,2]
[361013065,1747204250283,-3014.68919065,0.00014193,2]
[361013067,1747204250293,-151.0,0.00014246,2]
[361013069,1747204250303,-154.640279,0.00014246,2]
[361013071,1747204250315,-151.0,0.00014246,2]
[361013074,1747204250324,-151.0,0.00014246,2]
[361013076,1747204250335,-151.0,0.00014246,2]
[361013077,1747204250345,-151.0,0.00014246,2]
[361013079,1747204250354,-151.0,0.00014246,2]
[361013082,1747204250365,-151.0,0.00014246,2]
[361013084,1747204250375,-400.0,0.00014246,2]
[361013085,1747204250384,-400.0,0.00014246,2]
[361013087,1747204250394,-400.0,0.00014246,2]
[361013090,1747204250403,-400.0,0.00014246,2]
[361013091,1747204250412,-400.0,0.00014246,2]
[361013093,1747204250421,-412.25563274,0.00014246,2]
[361013095,1747204250431,-400.0,0.00014246,2]
[361013097,1747204250442,-419.97,0.00014246,2]
[361013099,1747204250451,-400.0,0.00014246,2]
[361013101,1747204250461,-400.0,0.00014246,2]
[361013103,1747204250470,-400.0,0.00014246,2]
[361013105,1747204250480,-400.0,0.00014246,2]
[361013107,1747204250491,-463.35785386,0.00014246,2]
[361013109,1747204250500,-400.0,0.00014246,2]
[361013111,1747204250509,-400.0,0.00014246,2]
[361013113,1747204250519,-400.0,0.00014246,2]
[361013115,1747204250529,-400.0,0.00014246,2]
[361013117,1747204250538,-400.0,0.00014246,2]
[361013119,1747204250548,-400.0,0.00014246,2]
[361013121,1747204250557,-400.0,0.00014246,2]
[361013123,1747204250567,-400.0,0.00014246,2]
[361013125,1747204250576,-400.0,0.00014246,2]
[361013127,1747204250586,-2573.04,0.00014246,2]
[361013129,1747204250595,-433.20492357,0.00014246,2]
[361013131,1747204250605,-400.0,0.00014246,2]
[361013133,1747204250614,-400.0,0.00014246,2]
[361013135,1747204250624,-662.64362683,0.00014246,2]
[361013138,1747204250642,-108.80637317,0.00014246,2]
[361013140,1747204250651,-400.0,0.00014246,2]
[361013142,1747204250661,-460.95,0.00014246,2]
[361013144,1747204250671,-400.0,0.00014246,2]
[361013145,1747204250681,-400.0,0.00014246,2]
[361013147,1747204250691,-895.08,0.00014246,2]
[361013148,1747204250700,-400.0,0.00014246,2]
[361013150,1747204250710,-400.0,0.00014246,2]
[361013151,1747204250720,-400.0,0.00014246,2]
[361013153,1747204250729,-400.0,0.00014246,2]
[361013154,1747204250738,-400.0,0.00014246,2]
[361013155,1747204250747,-461.36692967,0.00014246,2]
[361013157,1747204250756,-400.0,0.00014246,2]
[361013159,1747204250765,-400.0,0.00014246,2]
[361013160,1747204250775,-400.0,0.00014246,2]
[361013162,1747204250785,-400.0,0.00014246,2]
[361013163,1747204250795,-400.0,0.00014246,2]
[361013165,1747204250804,-400.0,0.00014246,2]
[361013166,1747204250813,-400.0,0.00014246,2]
[361013167,1747204250822,-400.0,0.00014246,2]
[361013169,1747204250831,-401.64,0.00014246,2]
[361013170,1747204250840,-397.15669616,0.00014246,2]
[361013315,1747204925989,1300.0,0.0002,120]
[361013373,1747205431868,-506.6745939,0.00012194,2]
[361013374,1747205431926,-4493.3254061,0.00012194,2]
[361013375,1747205431936,-1589.8837384,0.00012317,2]
[361013376,1747205431946,-300.0,0.0001279,2]
[361013377,1747205431955,-300.0,0.00012791,2]
[361013378,1747205431964,-300.0,0.00012791,2]
[361013379,1747205431975,-300.0,0.00012791,2]
[361013380,1747205431985,-1200.0,0.00012791,2]
[361013381,1747205431995,-300.0,0.00012791,2]
[361013382,1747205432004,-603.89786512,0.00012792,2]
[361013383,1747205432013,-500.0,0.00012792,2]
[361013384,1747205432023,-284.33358676,0.00012792,2]
[361013386,1747205432033,-500.0,0.00012792,2]
[361013388,1747205432043,-500.0,0.00012792,2]
[361013389,1747205432053,-500.0,0.00012792,2]
[361013391,1747205432062,-500.0,0.00012792,2]
[361013393,1747205432072,-500.0,0.00012792,2]
[361013395,1747205432081,-500.0,0.00012792,2]
[361013397,1747205432094,-451.08746306,0.00012792,2]
[361013400,1747205432103,-500.0,0.00012792,2]
[361013402,1747205432113,-500.0,0.00012792,2]
[361013404,1747205432123,-500.0,0.00012792,2]
[361013406,1747205432132,-500.0,0.00012792,2]
[361013408,1747205432142,-160.21860061,0.00012792,2]
[361013410,1747205432151,-500.0,0.00012792,2]
[361013411,1747205432160,-500.0,0.00012792,2]
[361013412,1747205432170,-500.0,0.00012792,2]
[361013413,1747205432179,-500.0,0.00012792,2]
[361013414,1747205432189,-500.0,0.00012792,2]
[361013415,1747205432197,-500.0,0.00012792,2]
[361013416,1747205432206,-500.0,0.00012792,2]
[361013417,1747205432215,-500.0,0.00012792,2]
[361013418,1747205432226,-500.0,0.00012792,2]
[361013419,1747205432237,-500.0,0.00012792,2]
[361013420,1747205432247,-500.0,0.00012792,2]
[361013421,1747205432257,-500.0,0.00012792,2]
[361013422,1747205432267,-500.0,0.00012792,2]
[361013423,1747205432277,-500.0,0.00012792,2]
[361013424,1747205432287,-500.0,0.00012792,2]
[361013425,1747205432297,-500.0,0.00012792,2]
[361013426,1747205432307,-500.0,0.00012792,2]
[361013427,1747205432317,-500.0,0.00012792,2]
[361013428,1747205432326,-500.0,0.00012792,2]
[361013429,1747205432338,-500.0,0.00012792,2]
[361013430,1747205432348,-500.0,0.00012792,2]
[361013431,1747205432357,-613.81647472,0.00012792,2]
[361013432,1747205432367,-500.0,0.00012792,2]
[361013433,1747205432377,-500.0,0.00012792,2]
[361013434,1747205432387,-500.0,0.00012792,2]
[361013435,1747205432396,-500.0,0.00012792,2]
[361013436,1747205432406,-500.0,0.00012792,2]
[361013437,1747205432416,-494.08641822,0.00012792,2]
[361013438,1747205432426,-500.0,0.00012792,2]
[361013439,1747205432436,-500.0,0.00012792,2]
[361013440,1747205432445,-500.0,0.00012792,2]
[361013441,1747205432455,-371.12584102,0.00012792,2]
[361013442,1747205432465,-7888.55557961,0.000128,2]
[361013443,1747205432474,-444.90695851,0.00013598,2]
[361013444,1747205432484,-151.0,0.00013698,2]
[361013445,1747205432493,-151.0,0.00013698,2]
[361013446,1747205432503,-151.0,0.00013698,2]
[361013447,1747205432512,-152.202462,0.00013698,2]
[361013448,1747205432522,-153.927477,0.00013698,2]
[361013449,1747205432533,-400.0,0.00013698,2]
[361013450,1747205432543,-400.0,0.00013698,2]
[361013451,1747205432553,-298.51655548,0.00013698,2]
[361013452,1747205432563,-218.55200538,0.00013698,2]
[361013453,1747205432574,-400.0,0.00013698,2]
[361013454,1747205432584,-400.0,0.00013698,2]
[361013455,1747205432594,-400.0,0.00013698,2]
[361013456,1747205432606,-400.0,0.00013698,2]
[361013457,1747205432616,-400.0,0.00013698,2]
[361013458,1747205432627,-400.0,0.00013698,2]
[361013459,1747205432646,-400.0,0.00013698,2]
[361013460,1747205432658,-400.0,0.00013698,2]
[361013461,1747205432670,-369.65013986,0.00013698,2]
[361013462,1747205432679,-400.0,0.00013698,2]
[361013463,1747205432689,-400.0,0.00013698,2]
[361013464,1747205432700,-400.0,0.00013698,2]
[361013465,1747205432710,-2251.41,0.00013698,2]
[361013466,1747205432720,-400.0,0.00013698,2]
[361013467,1747205432730,-400.0,0.00013698,2]
[361013468,1747205432739,-400.0,0.00013698,2]
[361013469,1747205432749,-400.0,0.00013698,2]
[361013470,1747205432759,-400.0,0.00013698,2]
[361013471,1747205432769,-403.33,0.00013698,2]
[361013472,1747205432779,-400.0,0.00013698,2]
[361013473,1747205432789,-400.0,0.00013698,2]
[361013474,1747205432799,-675.02,0.00013698,2]
[361013475,1747205432809,-400.0,0.00013698,2]
[361013476,1747205432819,-400.0,0.00013698,2]
[361013477,1747205432830,-3502.96,0.00013698,2]
[361013478,1747205432842,-783.19,0.00013698,2]
[361013479,1747205432852,-400.0,0.00013698,2]
[361013480,1747205432862,-400.0,0.00013698,2]
[361013481,1747205432872,-400.0,0.00013698,2]
[361013482,1747205432882,-400.0,0.00013698,2]
[361013483,1747205432891,-400.0,0.00013698,2]
[361013484,1747205432904,-400.0,0.00013698,2]
[361013485,1747205432914,-400.0,0.00013698,2]
[361013486,1747205432923,-400.0,0.00013698,2]
[361013487,1747205432933,-507.76,0.00013698,2]
[361013488,1747205432943,-400.0,0.00013698,2]
[361013489,1747205432952,-400.0,0.00013698,2]
[361013490,1747205432962,-379.97925193,0.00013698,2]
[361013491,1747205432971,-400.0,0.00013698,2]
[361013492,1747205432982,-400.0,0.00013698,2]
[361013493,1747205432991,-3819.44,0.00013698,2]
[361013494,1747205433001,-400.0,0.00013698,2]
[361013495,1747205433010,-400.0,0.00013698,2]
[361013496,1747205433020,-1032.21,0.00013698,2]
[361013497,1747205433030,-400.0,0.00013698,2]
[361013498,1747205433040,-400.0,0.00013698,2]
[361013499,1747205433050,-505.28,0.00013698,2]
[361013500,1747205433061,-400.0,0.00013698,2]
[361013501,1747205433073,-406.81,0.00013698,2]
[361013502,1747205433083,-400.0,0.00013698,2]
[361013503,1747205433095,-400.0,0.00013698,2]
[361013504,1747205433105,-23.4780752,0.00013698,2]
[361013540,1747205440153,-411.6119248,0.00013698,2]
[361013542,1747205440162,-116.07908069,0.00013698,2]
[361017847,1747206632064,-1215.48640245,0.00013165,2]
[361017848,1747206632104,-628.45,0.00013165,2]
[361017887,1747206638028,-2534.1571635,0.00013165,2]
[361017893,1747206638069,-621.90643405,0.00013165,2]
[361017895,1747206638079,-1200.0,0.00013547,2]
[361017897,1747206638089,-300.0,0.00013547,2]
[361017899,1747206638099,-300.0,0.00013548,2]
[361017901,1747206638109,-300.0,0.00013548,2]
[361017903,1747206638120,-300.0,0.00013548,2]
[361017905,1747206638130,-300.0,0.00013548,2]
[361017907,1747206638139,-457.09071941,0.00013549,2]
[361017909,1747206638149,-500.0,0.00013549,2]
[361017911,1747206638158,-554.89849091,0.00013549,2]
[361017913,1747206638170,-374.56953789,0.00013549,2]
[361017915,1747206638180,-389.29358867,0.00013598,2]
[361017917,1747206638189,-566.51979869,0.00013689,2]
[361017919,1747206638199,-422.72850559,0.00013697,2]
[361017921,1747206638208,-500.0,0.00013697,2]
[361017923,1747206638218,-299.03351073,0.00013697,2]
[361017925,1747206638227,-500.0,0.00013697,2]
[361017927,1747206638237,-500.0,0.00013697,2]
[361017929,1747206638246,-500.0,0.00013697,2]
[361017931,1747206638263,-400.0,0.00013698,2]
[361017933,1747206638281,-400.0,0.00013698,2]
[361017935,1747206638294,-400.0,0.00013698,2]
[361017937,1747206638303,-285.24517406,0.00013698,2]
[361017939,1747206638315,-114.75482594,0.00013698,2]
[361017941,1747206638324,-382.69098636,0.00013698,2]
[361017943,1747206638333,-400.0,0.00013698,2]
[361017945,1747206638342,-400.0,0.00013698,2]
[361017947,1747206638352,-400.0,0.00013698,2]
[361017949,1747206638361,-400.0,0.00013698,2]
[361017951,1747206638370,-400.0,0.00013698,2]
[361017953,1747206638379,-400.0,0.00013698,2]
[361017955,1747206638389,-400.0,0.00013698,2]
[361017957,1747206638399,-400.0,0.00013698,2]
[361017959,1747206638408,-400.0,0.00013698,2]
[361017961,1747206638418,-400.0,0.00013698,2]
[361017963,1747206638427,-400.0,0.00013698,2]
[361017965,1747206638436,-400.0,0.00013698,2]
[361017967,1747206638447,-400.0,0.00013698,2]
[361017969,1747206638458,-400.0,0.00013698,2]
[361017972,1747206638467,-2157.6,0.00013698,2]
[361017974,1747206638478,-400.0,0.00013698,2]
[361017976,1747206638487,-750.56,0.00013698,2]
[361017977,1747206638497,-400.0,0.00013698,2]
[361017980,1747206638507,-646.89,0.00013698,2]
[361017982,1747206638516,-400.0,0.00013698,2]
[361017983,1747206638526,-3357.0,0.00013698,2]
[361017985,1747206638535,-400.0,0.00013698,2]
[361017987,1747206638545,-400.0,0.00013698,2]
[361017989,1747206638554,-400.0,0.00013698,2]
[361017991,1747206638564,-400.0,0.00013698,2]
[361017993,1747206638573,-400.0,0.00013698,2]
[361017995,1747206638582,-3660.3,0.00013698,2]
[361017997,1747206638591,-400.0,0.00013698,2]
[361017999,1747206638601,-400.0,0.00013698,2]
[361018001,1747206638610,-400.0,0.00013698,2]
[361018003,1747206638619,-282.72509044,0.00013698,2]
[361022024,1747207271057,154.90387141,5.5e-07,2]
[361022025,1747207271180,154.90387141,5.5e-07,2]
[361022045,1747207803274,1500.0,8.02e-05,2]
[361022100,1747207832288,-569.45124166,0.0001142,2]
[361022104,1747207832316,-616.04569832,0.0001142,2]
[361022150,1747207832630,-3814.50306002,0.0001142,2]
[361022152,1747207832640,-300.0,0.00011534,2]
[361022155,1747207832650,-500.0,0.00011535,2]
[361022156,1747207832659,-577.54146779,0.00011535,2]
[361022158,1747207832669,-300.0,0.00011535,2]
[361022160,1747207832679,-300.0,0.00011535,2]
[361022162,1747207832689,-300.0,0.00011535,2]
[361022164,1747207832699,-1200.0,0.00011535,2]
[361022166,1747207832708,-300.0,0.00011535,2]
[361022168,1747207832718,-24900.0,0.00011536,2]
[361022170,1747207832728,-250.0,0.00012307,2]
[361022172,1747207832737,-489.74597494,0.00012535,2]
[361022174,1747207832747,-500.0,0.00012535,2]
[361022176,1747207832758,-18189.49626112,0.00012536,2]
[361022178,1747207832769,-851.02316454,0.00012536,2]
[361022225,1747207838406,-500.0,0.00011534,2]
[361022226,1747207838416,-308.67953029,0.00011534,2]
[361022227,1747207838427,-500.0,0.00011534,2]
[361022228,1747207838436,-506.39409455,0.00011534,2]
[361022229,1747207838446,-500.0,0.00011534,2]
[361022230,1747207838455,-574.53273817,0.00011534,2]
[361022231,1747207838465,-500.0,0.00011534,2]
[361022232,1747207838475,-500.0,0.00011534,2]
[361022233,1747207838484,-500.0,0.00011534,2]
[361022234,1747207838493,-216.84241757,0.00011534,2]
[361022235,1747207838505,-283.15758243,0.00011534,2]
[361022236,1747207838514,-500.0,0.00011534,2]
[361022237,1747207838524,-500.0,0.00011534,2]
[361022238,1747207838533,-500.0,0.00011534,2]
[361022239,1747207838543,-500.0,0.00011534,2]
[361022240,1747207838552,-500.0,0.00011534,2]
[361022242,1747207838562,-500.0,0.00011534,2]
[361022245,1747207838572,-500.0,0.00011534,2]
[361022246,1747207838582,-500.0,0.00011534,2]
[361022249,1747207838592,-622.77999316,0.00011534,2]
[361022250,1747207838602,-500.0,0.00011534,2]
[361022251,1747207838611,-500.0,0.00011534,2]
[361022253,1747207838621,-500.0,0.00011534,2]
[361022256,1747207838630,-500.0,0.00011535,2]
[361022257,1747207838639,-500.0,0.00011535,2]
[361022260,1747207838649,-500.0,0.00011535,2]
[361022261,1747207838658,-500.0,0.00011535,2]
[361022263,1747207838668,-459.32345751,0.00011535,2]
[361022265,1747207838678,-3393.28160527,0.00012536,2]
[361022267,1747207838688,-2690.609455,0.00012543,2]
[361022269,1747207838697,-420.0,0.00012668,2]
[361022270,1747207838706,-420.0,0.00012669,2]
[361022271,1747207838715,-301.0,0.00012669,2]
[361022272,1747207838725,-301.0,0.00012669,2]
[361022273,1747207838734,-420.0,0.00012669,2]
[361022274,1747207838743,-178.87631037,0.00012688,2]
[361022336,1747207840814,-572.325,0.00012688,2]
[361022339,1747207840840,-928.79868963,0.00012688,2]
[361022341,1747207840850,-1063.1472563,0.00012737,2]
[361022343,1747207840859,-9238.67551844,0.00013,2]
[361022345,1747207840868,-354.7439102,0.000133,2]
[361022347,1747207840881,-468.8517153,0.000133,2]
[361022349,1747207840890,-286.504,0.00013409,2]
[361022352,1747207840900,-9238.67551825,0.00013417,2]
[361022354,1747207840909,-652.68038405,0.0001359,2]
[361022356,1747207840920,-238.0850385,0.000136,2]
[361022358,1747207840930,-400.0,0.00013698,2]
[361022360,1747207840940,-156.54557135,0.00013698,2]
[361022363,1747207840949,-400.0,0.00013698,2]
[361022366,1747207840959,-400.0,0.00013698,2]
[361022369,1747207840968,-400.0,0.00013698,2]
[361022371,1747207840977,-400.0,0.00013698,2]
[361022374,1747207840987,-400.0,0.00013698,2]
[361022376,1747207840996,-400.0,0.00013698,2]
[361022378,1747207841005,-400.0,0.00013698,2]
[361022380,1747207841015,-240.43156038,0.00013698,2]
[361022382,1747207841024,-400.0,0.00013698,2]
[361022384,1747207841034,-400.0,0.00013698,2]
[361022386,1747207841043,-400.0,0.00013698,2]
[361022388,1747207841053,-151.0,0.00013698,2]
[361022391,1747207841073,-151.11532916,0.00013698,2]
[361022393,1747207841083,-400.0,0.00013698,2]
[361022395,1747207841094,-151.0,0.00013698,2]
[361022397,1747207841104,-400.0,0.00013698,2]
[361022399,1747207841114,-400.0,0.00013698,2]
[361022401,1747207841124,-400.0,0.00013698,2]
[361022404,1747207841134,-400.0,0.00013698,2]
[361022406,1747207841144,-400.0,0.00013698,2]
[361022408,1747207841154,-400.0,0.00013698,2]
[361022410,1747207841163,-692.0,0.00013698,2]
[361022412,1747207841173,-692.0,0.00013698,2]
[361022414,1747207841186,-627.03668883,0.00013698,2]
[361022416,1747207841196,-166.0,0.00013698,2]
[361022418,1747207841207,-166.0,0.00013698,2]
[361022420,1747207841217,-166.0,0.00013698,2]
[361022422,1747207841228,-166.0,0.00013698,2]
[361022424,1747207841238,-166.0,0.00013698,2]
[361022426,1747207841249,-175.10246051,0.00013698,2]
[361022428,1747207841258,-400.0,0.00013698,2]
[361022430,1747207841268,-400.0,0.00013698,2]
[361022432,1747207841278,-400.0,0.00013698,2]
[361022434,1747207841288,-400.0,0.00013698,2]
[361022437,1747207841298,-400.0,0.00013698,2]
[361022439,1747207841308,-400.0,0.00013698,2]
[361022441,1747207841318,-400.0,0.00013698,2]
[361022443,1747207841327,-400.0,0.00013698,2]
[361022445,1747207841337,-400.0,0.00013698,2]
[361022447,1747207841347,-342.82009552,0.00013698,2]
[361022449,1747207841358,-400.0,0.00013698,2]
[361022451,1747207841368,-2162.11,0.00013698,2]
[361022453,1747207841377,-400.0,0.00013698,2]
[361022455,1747207841387,-400.0,0.00013698,2]
[361022457,1747207841396,-400.0,0.00013698,2]
[361022459,1747207841406,-508.14,0.00013698,2]
[361022461,1747207841416,-322.50026358,0.00013698,2]
[361022672,1747207843487,-404.0,0.00013551,2]
[361022674,1747207843497,-77.49973642,0.00013698,2]
[361022676,1747207843507,-835.76,0.00013698,2]
[361022678,1747207843518,-4129.21,0.00013698,2]
[361022680,1747207843527,-400.0,0.00013698,2]
[361022682,1747207843537,-400.0,0.00013698,2]
[361022684,1747207843546,-400.0,0.00013698,2]
[361022686,1747207843556,-400.0,0.00013698,2]
[361022688,1747207843565,-400.0,0.00013698,2]
[361022690,1747207843575,-400.0,0.00013698,2]
[361022692,1747207843585,-968.05,0.00013698,2]
[361022694,1747207843594,-400.0,0.00013698,2]
[361022696,1747207843604,-387.98388806,0.00013698,2]
[361022698,1747207843613,-400.0,0.00013698,2]
[361022700,1747207843623,-400.0,0.00013698,2]
[361022702,1747207843632,-400.0,0.00013698,2]
[361022704,1747207843642,-400.0,0.00013698,2]
[361022706,1747207843652,-400.0,0.00013698,2]
[361022708,1747207843662,-400.0,0.00013698,2]
[361022710,1747207843672,-400.0,0.00013698,2]
[361022712,1747207843682,-400.0,0.00013698,2]
[361022715,1747207843692,-400.0,0.00013698,2]
[361022717,1747207843702,-400.0,0.00013698,2]
[361022719,1747207843711,-400.0,0.00013698,2]
[361022721,1747207843722,-1162.51,0.00013698,2]
[361022723,1747207843733,-400.0,0.00013698,2]
[361022725,1747207843743,-400.0,0.00013698,2]
[361022728,1747207843753,-400.0,0.00013698,2]
[361022731,1747207843764,-400.0,0.00013698,2]
[361022733,1747207843774,-400.0,0.00013698,2]
[361022735,1747207843786,-400.0,0.00013698,2]
[361022737,1747207843796,-453.88,0.00013698,2]
[361022739,1747207843806,-247.78479664,0.00013698,2]
[361022806,1747207846512,-189.546,0.00013551,2]
[361022807,1747207846521,-2342.29306776,0.00013561,2]
[361022808,1747207846618,-2657.70693224,0.00013561,2]
[361022809,1747207846627,-160.01520336,0.00013698,2]
[361022810,1747207846637,-400.0,0.00013698,2]
[361022811,1747207846646,-584.63,0.00013698,2]
[361022812,1747207846655,-503.26,0.00013698,2]
[361022813,1747207846665,-2144.38768938,0.00013698,2]
[361022814,1747207846676,-413.19231062,0.00013698,2]
[361022815,1747207846687,-400.0,0.00013698,2]
[361022816,1747207846696,-400.0,0.00013698,2]
[361022817,1747207846706,-400.0,0.00013698,2]
[361022818,1747207846715,-400.0,0.00013698,2]
[361022819,1747207846725,-400.0,0.00013698,2]
[361022820,1747207846735,-400.0,0.00013698,2]
[361022821,1747207846744,-524.71789103,0.00013698,2]
[361022822,1747207846755,-616.17,0.00013698,2]
[361022823,1747207846764,-507.46,0.00013698,2]
[361022824,1747207846773,-587.32,0.00013698,2]
[361022825,1747207846782,-400.0,0.00013698,2]
[361022826,1747207846792,-266.59086378,0.00013698,2]
[361022827,1747207846801,-400.0,0.00013698,2]
[361022828,1747207846810,-450.19,0.00013698,2]
[361022829,1747207846819,-400.0,0.00013698,2]
[361022830,1747207846829,-526.81798092,0.00013698,2]
[361022831,1747207846838,-478.95,0.00013698,2]
[361022832,1747207846847,-400.0,0.00013698,2]
[361022833,1747207846856,-400.0,0.00013698,2]
[361022834,1747207846865,-291.09095515,0.00013698,2]
[361022895,1747209032547,-250.0,0.00010749,2]
[361022897,1747209032557,-5000.0,0.00010879,2]
[361022899,1747209032566,-163.59994443,0.000111,2]
[361022901,1747209032576,-199.0,0.000112,2]
[361022903,1747209032586,-1200.0,0.00011727,2]
[361022905,1747209032595,-289.0,0.00011727,2]
[361022907,1747209032604,-286.05919313,0.00011728,2]
[361022909,1747209032614,-500.0,0.00011728,2]
[361022911,1747209032623,-346.9755548,0.00011728,2]
[361022913,1747209032632,-300.0,0.00011729,2]
[361022915,1747209032641,-300.0,0.00011729,2]
[361022917,1747209032651,-3920.12245477,0.00011736,2]
[361022919,1747209032661,-542.77493565,0.00011736,2]
[361022922,1747209032670,-184.56173098,0.0001183,2]
[361022925,1747209032680,-500.0,0.0001183,2]
[361022928,1747209032689,-500.0,0.0001183,2]
[361022931,1747209032699,-500.0,0.0001183,2]
[361022934,1747209032709,-624.37326316,0.0001183,2]
[361022937,1747209032719,-500.0,0.0001183,2]
[361022939,1747209032728,-500.0,0.0001183,2]
[361022941,1747209032739,-9688.94457097,0.00011831,2]
[361022943,1747209032751,-15211.05542903,0.00011831,2]
[361022945,1747209032760,-250.0,0.00011921,2]
[361022947,1747209032769,-188.0,0.00012,2]
[361022949,1747209032779,-188.0,0.00012,2]
[361022951,1747209032788,-420.0,0.00012879,2]
[361022953,1747209032797,-420.0,0.00012879,2]
[361022955,1747209032806,-1090.0,0.000129,2]
[361022957,1747209032815,-154.4877685,0.00012978,2]
[361022959,1747209032825,-10138.52019554,0.00013,2]
[361022961,1747209032834,-10138.52019547,0.00013,2]
[361022962,1747209032843,-10138.52019547,0.00013003,2]
[361022963,1747209032852,-523.43950601,0.00013545,2]
[361022964,1747209032862,-10138.52019547,0.00013555,2]
[361022965,1747209032871,-5365.48334946,0.00013599,2]
[361022967,1747209032880,-163.5,0.00013599,2]
[361022969,1747209032889,-163.5,0.00013599,2]
[361022971,1747209032898,-163.5,0.00013599,2]
[361022973,1747209032908,-163.5,0.00013599,2]
[361022975,1747209032917,-163.5,0.00013599,2]
[361022977,1747209032926,-163.5,0.00013599,2]
[361022979,1747209032935,-163.5,0.00013599,2]
[361022981,1747209032944,-188.0,0.000136,2]
[361022983,1747209032954,-198.47739206,0.000136,2]
[361022985,1747209032963,-188.0,0.000136,3]
[361022987,1747209032973,-24.37800885,0.00013698,2]
[361022989,1747209032983,-315.468964,0.00013698,2]
[361022991,1747209032992,-315.468964,0.00013698,2]
[361022993,1747209033001,-315.468964,0.00013698,2]
[361022995,1747209033010,-151.0,0.00013698,2]
[361022997,1747209033020,-151.0,0.00013698,2]
[361022999,1747209033031,-400.0,0.00013698,2]
[361023001,1747209033041,-400.0,0.00013698,2]
[361023003,1747209033050,-400.0,0.00013698,2]
[361023005,1747209033059,-400.0,0.00013698,2]
[361023007,1747209033070,-400.0,0.00013698,2]
[361023009,1747209033079,-400.0,0.00013698,2]
[361023011,1747209033089,-400.0,0.00013698,2]
[361023013,1747209033098,-400.0,0.00013698,2]
[361023015,1747209033108,-400.0,0.00013698,2]
[361023017,1747209033117,-400.0,0.00013698,2]
[361023019,1747209033127,-400.0,0.00013698,2]
[361023021,1747209033136,-152.684419,0.00013698,2]